bitfinex/quotes_SOLUSD_20260201
["timestamp","ask_amount","ask_price","bid_price","bid_amount"]
[1769915348653,10.18152207,105.42,105.39,2.95897006]
[1769915349643,5.90625122,105.42,105.39,2.95897006]
[1769915350162,2.53410618,105.38,105.28,0.1]
[1769915350348,2.53410618,105.38,105.29,3.46970353]
[1769915350650,2.53410618,105.38,105.31,9.49519655]
[1769915351027,6.79509477,105.39,105.31,3.46970353]
[1769915351242,6.79509477,105.39,105.33,9.49333388]
[1769915351744,6.79509477,105.39,105.34,9.49289528]
[1769915352153,16.28376013,105.39,105.35,2.69936378]
[1769915354054,11.96502283,105.41,105.36,12.19037475]
[1769915354256,11.96502283,105.41,105.37,2.69936378]
[1769915355339,17.84311339,105.42,105.38,2.69936378]
[1769915355646,5.90625122,105.42,105.38,2.69936378]
[1769915356042,15.3922985,105.42,105.38,2.69936378]
[1769915358348,17.80313092,105.42,105.38,2.69936378]
[1769915358550,2.41083242,105.41,105.38,2.69936378]
[1769915359758,11.89760702,105.41,105.38,2.69936378]
[1769915360637,10.85978718,105.42,105.38,2.69936378]
[1769915360638,22.73073358,105.42,105.38,2.69936378]
[1769915362354,10.85978718,105.42,105.38,12.1888273]
[1769915362553,10.85978718,105.42,105.39,2.69936378]
[1769915362752,5.90625122,105.42,105.39,2.69936378]
[1769915365970,5.90625122,105.42,105.4,2.69936378]
[1769915366263,8.217252,105.42,105.39,63.89936378]
[1769915370173,8.217252,105.42,105.39,2.69936378]
[1769915370473,17.70344029,105.42,105.39,2.69936378]
[1769915370855,15.39243951,105.42,105.39,63.89936378]
[1769915371078,17.65687961,105.42,105.39,63.89936378]
[1769915371674,5.90625122,105.42,105.4,2.69936378]
[1769915371977,4.75765266,105.42,105.41,2.69936378]
[1769915373368,2.45313225,105.44,105.41,2.69936378]
[1769915373763,0.2,105.44,105.42,2.69936378]
[1769915374269,2.88003973,105.44,105.42,2.69936378]
[1769915374771,2.88003973,105.44,105.41,2.69936378]
[1769915375275,12.36438947,105.44,105.41,2.69936378]
[1769915375476,2.68003973,105.43,105.4,63.89936378]
[1769915376357,12.16507118,105.43,105.4,63.89936378]
[1769915376572,2.68003973,105.42,105.4,61.2]
[1769915376877,12.36421589,105.44,105.41,2.69936378]
[1769915381973,9.68417616,105.44,105.42,2.46160307]
[1769915382377,9.68417616,105.44,105.43,2.35799792]
[1769915382378,0.2,105.44,105.43,2.35799792]
[1769915383359,2.62982784,105.46,105.43,2.35799792]
[1769915384262,12.11230084,105.46,105.43,2.35799792]
[1769915387581,2.62982784,105.46,105.43,63.55799792]
[1769915387887,0.2,105.46,105.44,2.35799792]
[1769915390389,0.2,105.46,105.44,63.55799792]
[1769915390572,0.2,105.46,105.45,2.35799792]
[1769915391594,0.2,105.46,105.44,61.2]
[1769915391783,0.2,105.46,105.45,2.35799792]
[1769915392089,0.2,105.46,105.45,63.55799792]
[1769915393487,2.62982784,105.48,105.46,63.35799792]
[1769915393673,0.2,105.48,105.46,63.35799792]
[1769915393875,2.62982784,105.48,105.46,61.0]
[1769915394077,2.62982784,105.48,105.46,63.35799792]
[1769915394474,12.11040818,105.48,105.46,61.0]
[1769915394686,2.42982784,105.47,105.46,61.0]
[1769915394885,2.42982784,105.47,105.43,3.36991054]
[1769915395081,2.42982784,105.47,105.42,2.35799792]
[1769915396467,9.48226815,105.46,105.42,2.35799792]
[1769915396687,2.42982784,105.45,105.42,2.35799792]
[1769915397076,2.42982784,105.44,105.39,12.85787324]
[1769915397278,2.42982784,105.44,105.4,9.48750237]
[1769915399092,2.42982784,105.44,105.41,2.35799792]
[1769915399693,11.91406048,105.44,105.41,2.35799792]
[1769915401278,2.42982784,105.43,105.4,11.84550029]
[1769915402101,2.42982784,105.43,105.4,15.21541083]
[1769915402402,2.42982784,105.43,105.41,2.35799792]
[1769915403699,2.42982784,105.44,105.41,15.21431829]
[1769915404709,11.91313174,105.45,105.42,2.35799792]
[1769915404893,2.42982784,105.45,105.42,5.72790846]
[1769915405093,2.42982784,105.45,105.42,15.21365552]
[1769915406208,2.42982784,105.45,105.43,2.35799792]
[1769915406383,13.75794011,105.46,105.43,2.35799792]
[1769915406588,2.42982784,105.47,105.44,2.35799792]
[1769915407402,2.42982784,105.47,105.44,5.72790846]
[1769915407595,11.89514034,105.48,105.45,2.22187861]
[1769915408101,2.21386728,105.47,105.44,5.59178915]
[1769915408310,2.21386728,105.47,105.44,3.36991054]
[1769915408683,2.21386728,105.47,105.42,2.22187861]
[1769915408893,2.21386728,105.44,105.41,5.59178915]
[1769915409411,2.21386728,105.44,105.41,15.07829233]
[1769915413013,2.21386728,105.46,105.43,2.22187861]
[1769915415832,2.21386728,105.46,105.43,11.70656839]
[1769915416417,15.97088625,105.47,105.44,2.22187861]
[1769915417217,2.21386728,105.46,105.43,2.22187861]
[1769915417993,2.21386728,105.46,105.43,5.59178915]
[1769915418219,2.21386728,105.46,105.43,15.07670795]
[1769915418899,11.69633964,105.46,105.43,5.59178915]
[1769915422526,2.21386728,105.45,105.43,5.59178915]
[1769915424423,2.21386728,105.44,105.4,70.68750329]
[1769915424720,2.21386728,105.44,105.39,2.22187861]
[1769915427124,2.21386728,105.42,105.38,9.48898273]
[1769915427332,2.21386728,105.42,105.38,11.71086134]
[1769915429634,2.21386728,105.41,105.37,35.43689811]
[1769915429931,2.21386728,105.41,105.37,96.63689811]
[1769915430233,2.21386728,105.41,105.37,72.91224588]
[1769915430610,2.21386728,105.41,105.38,2.22187861]
[1769915431209,11.70068256,105.41,105.38,2.22187861]
[1769915431637,2.21386728,105.4,105.38,2.22187861]
[1769915432117,2.21386728,105.4,105.37,70.69036727]
[1769915432318,2.21386728,105.4,105.37,72.91224588]
[1769915433534,2.21386728,105.39,105.36,2.22187861]
[1769915433733,2.21386728,105.39,105.34,11.71488781]
[1769915433929,7.16786728,105.36,105.32,2.22187861]
[1769915434928,7.16786728,105.36,105.33,11.71576632]
[1769915435856,2.21386728,105.35,105.32,11.71632379]
[1769915437034,4.954,105.36,105.33,2.22187861]
[1769915437849,1e-08,105.36,105.34,3.4611222]
[1769915438225,2.21510325,105.39,105.34,3.4611222]
[1769915438825,2.21510325,105.39,105.35,9.49216896]
[1769915440428,2.33940928,105.4,105.35,33.22259136]
[1769915441238,11.8271661,105.4,105.35,33.22259136]
[1769915443549,11.8271661,105.4,105.35,94.42259136]
[1769915444028,11.8271661,105.4,105.35,97.88371356]
[1769915444651,2.33940928,105.39,105.35,97.88371356]
[1769915445342,2.33940928,105.4,105.35,201.38371356]
[1769915447353,2.33940928,105.4,105.36,3.4611222]
[1769915448554,2.33940928,105.4,105.37,9.49036727]
[1769915448735,2.33940928,105.4,105.37,70.69036727]
[1769915451650,11.82717823,105.4,105.37,61.2]
[1769915451857,2.33940928,105.39,105.37,61.2]
[1769915452039,2.33940928,105.39,105.37,58.86059072]
[1769915452238,2.33940928,105.39,105.34,70.53696614]
[1769915452654,2.33940928,105.39,105.36,9.49115722]
[1769915453054,2.33940928,105.39,105.36,11.67506767]
[1769915454153,2.33940928,105.39,105.35,11.67607941]
[1769915455760,2.33940928,105.39,105.36,2.18391045]
[1769915456455,2.33940928,105.39,105.36,11.67506154]
[1769915458156,33.20225277,105.42,105.39,33.29552034]
[1769915458343,33.20225277,105.42,105.36,44.97058188]
[1769915459953,33.20225277,105.42,105.37,2.18391045]
[1769915460164,2.17869725,105.41,105.37,2.18391045]
[1769915461663,15.93930114,105.43,105.38,2.18391045]
[1769915461867,15.93930114,105.43,105.4,2.18391045]
[1769915462241,2.17869725,105.42,105.4,2.18391045]
[1769915462468,15.93930114,105.43,105.4,2.18391045]
[1769915462649,2.17869725,105.42,105.39,11.67247672]
[1769915462850,2.17869725,105.42,105.39,2.18391045]
[1769915463367,2.17869725,105.42,105.38,9.48904894]
[1769915463567,2.17869725,105.42,105.38,2.18391045]
[1769915464367,11.66486694,105.42,105.38,2.18391045]
[1769915464551,11.66486694,105.42,105.38,11.673129]
[1769915465549,11.66486694,105.42,105.39,2.18391045]
[1769915465749,59.30206695,105.45,105.39,2.18391045]
[1769915465943,9.4844304,105.44,105.39,3.4611222]
[1769915466163,9.4844304,105.44,105.41,2.18391045]
[1769915466348,9.4844304,105.44,105.42,2.18391045]
[1769915467666,4.95701949,105.45,105.42,2.18391045]
[1769915468166,2.18946101,105.47,105.42,2.18391045]
[1769915469162,7.34462854,105.48,105.44,2.19580365]
[1769915470067,14.63577186,105.48,105.44,2.19580365]
[1769915470363,11.87006534,105.48,105.44,2.19580365]
[1769915471666,2.38946101,105.48,105.45,2.19580365]
[1769915471874,0.2,105.48,105.45,2.19580365]
[1769915472968,0.2,105.48,105.45,35.49132399]
[1769915473470,0.2,105.48,105.46,2.19580365]
[1769915474673,5.02025899,105.49,105.47,2.19580365]
[1769915476274,2.38946101,105.51,105.49,28.27526135]
[1769915481671,2.18946101,105.51,105.47,8.82693126]
[1769915482855,2.18946101,105.5,105.45,103.5]
[1769915483055,2.18946101,105.5,105.43,9.48456317]
[1769915483775,2.18946101,105.5,105.44,2.19580365]
[1769915484976,2.18946101,105.48,105.43,63.39580365]
[1769915485360,2.18946101,105.48,105.43,61.2]
[1769915486784,2.18946101,105.48,105.43,63.39580365]
[1769915486965,2.18946101,105.47,105.44,2.19580365]
[1769915488387,11.6710975,105.47,105.44,2.19580365]
[1769915490287,11.6710975,105.47,105.44,63.39580365]
[1769915490693,2.18946101,105.46,105.44,61.2]
[1769915491183,2.18946101,105.46,105.44,60.07397686]
[1769915491962,2.18946101,105.46,105.42,2.19580365]
[1769915491963,2.18946101,105.46,105.42,9.63036835]
[1769915492672,11.67262838,105.45,105.42,9.63036835]
[1769915498490,2.18946101,105.45,105.43,2.11462928]
[1769915498678,11.54216952,105.47,105.43,2.11462928]
[1769915498879,2.06026784,105.46,105.43,2.11462928]
[1769915499077,11.54216952,105.47,105.43,2.11462928]
[1769915500394,11.54216952,105.47,105.44,2.11462928]
[1769915502194,11.54216952,105.47,105.44,9.54919398]
[1769915506083,2.12858338,105.46,105.44,9.54919398]
[1769915514488,2.12858338,105.46,105.44,7.4345647]
[1769915515208,2.12858338,105.46,105.44,9.66781144]
[1769915515390,2.12858338,105.47,105.44,9.66781144]
[1769915516706,11.61019986,105.47,105.44,9.66781144]
[1769915516909,2.12858338,105.46,105.44,9.66781144]
[1769915517291,2.12858338,105.46,105.43,7.4345647]
[1769915517514,2.12858338,105.46,105.43,1.48096704]
[1769915518986,9.48316737,105.45,105.4,3.74451306]
[1769915519211,9.48316737,105.45,105.4,2.26354602]
[1769915519518,33.19108581,105.45,105.4,2.26354602]
[1769915521692,33.19108581,105.45,105.39,13.23305126]
[1769915522223,33.19108581,105.45,105.4,2.26354602]
[1769915522399,33.19108581,105.45,105.41,2.26354602]
[1769915522601,33.19108581,105.45,105.4,2.26354602]
[1769915524900,33.19108581,105.45,105.4,11.75116548]
[1769915525099,33.19108581,105.45,105.4,2.26354602]
[1769915527119,33.19108581,105.45,105.41,2.26354602]
[1769915527313,9.48316737,105.45,105.41,2.26354602]
[1769915528395,9.5038057,105.45,105.42,2.26354602]
[1769915528729,9.50302525,105.46,105.42,2.26354602]
[1769915529213,0.02063833,105.46,105.42,11.74939693]
[1769915529411,0.02063833,105.46,105.43,2.26354602]
[1769915529608,0.02063833,105.46,105.43,3.74451306]
[1769915531615,0.02063833,105.46,105.43,1.48096704]
[1769915532918,0.02063833,105.46,105.4,2.27772847]
[1769915533218,26.36,105.46,105.4,2.27772847]
[1769915534016,33.19108581,105.45,105.4,2.27772847]
[1769915534322,59.55108581,105.45,105.39,2.27772847]
[1769915536014,9.48496632,105.43,105.39,2.27772847]
[1769915536404,14.44131465,105.44,105.4,2.27772847]
[1769915537617,9.48440275,105.44,105.41,2.27772847]
[1769915540124,9.48316737,105.45,105.41,63.47772847]
[1769915542621,9.48316737,105.45,105.39,2.27772847]
[1769915542622,33.19108581,105.45,105.39,2.27772847]
[1769915544625,0.02120217,105.44,105.39,2.27772847]
[1769915551915,0.02120217,105.44,105.4,2.27772847]
[1769915553452,0.02120217,105.44,105.39,63.47772847]
[1769915553627,0.02120217,105.44,105.4,2.27772847]
[1769915557748,0.02120217,105.44,105.4,63.47772847]
[1769915561346,0.02120217,105.44,105.41,2.27772847]
[1769915562246,59.59910986,105.45,105.41,2.27772847]
[1769915563052,59.55108581,105.45,105.41,2.27772847]
[1769915563235,0.05067439,105.44,105.41,2.27772847]
[1769915564333,33.14497459,105.45,105.41,2.27772847]
[1769915567353,59.50497459,105.45,105.41,2.27772847]
[1769915568257,4.95692535,105.44,105.41,2.27772847]
[1769915569261,4.95692535,105.44,105.4,2.30306566]
[1769915569459,4.27527085,105.42,105.35,2.30306566]
[1769915569655,30.63527085,105.41,105.35,2.30306566]
[1769915569849,9.48766603,105.4,105.35,2.30306566]
[1769915570240,9.48766603,105.4,105.36,2.30306566]
[1769915573455,33.20683111,105.4,105.36,2.30306566]
[1769915578364,33.20683111,105.4,105.36,63.50306566]
[1769915579463,0.02085682,105.39,105.36,63.50306566]
[1769915581854,0.02085682,105.39,105.34,61.2]
[1769915582057,7.18861508,105.36,105.32,70.6945856]
[1769915582363,2.22961508,105.35,105.32,61.2]
[1769915582568,7.18861508,105.36,105.32,61.2]
[1769915582871,7.18861508,105.36,105.32,70.69479187]
[1769915583251,16.68023128,105.36,105.32,70.69479187]
[1769915583873,16.68023128,105.36,105.33,2.23991782]
[1769915584973,40.40840136,105.36,105.33,2.23991782]
[1769915587378,11.64688335,105.35,105.33,2.23991782]
[1769915590063,11.64688335,105.35,105.33,63.43991782]
[1769915590778,2.1544777,105.34,105.31,0.1]
[1769915592879,11.64836549,105.34,105.31,2.31547446]
[1769915593179,9.49388779,105.34,105.31,2.31547446]
[1769915593479,2.1544777,105.33,105.31,2.31547446]
[1769915593982,11.6486085,105.33,105.31,2.31547446]
[1769915594980,11.64754775,105.34,105.31,2.31547446]
[1769915597768,11.64754775,105.34,105.31,1.81957446]
[1769915600182,2.1544777,105.33,105.29,17.38664701]
[1769915600485,2.1544777,105.33,105.3,2.21547446]
[1769915601773,2.1544777,105.33,105.31,2.21547446]
[1769915602070,14.45410883,105.35,105.31,2.21547446]
[1769915602375,38.02546683,105.37,105.33,2.21547446]
[1769915602568,42.98574995,105.37,105.33,2.21547446]
[1769915602764,42.98574995,105.37,105.32,7.24724722]
[1769915602965,38.02546683,105.37,105.32,7.24724722]
[1769915603165,11.64400384,105.38,105.32,34.45422198]
[1769915603484,32.80974855,105.41,105.33,3.46979284]
[1769915603674,9.48766603,105.4,105.34,3.46979284]
[1769915604075,11.64214373,105.4,105.34,3.46979284]
[1769915604676,11.64214373,105.4,105.37,2.03769291]
[1769915611997,14.44546453,105.41,105.38,2.06718149]
[1769915612382,9.48691806,105.41,105.38,2.06718149]
[1769915613000,11.64139576,105.41,105.38,2.06718149]
[1769915613497,9.48586605,105.42,105.39,2.08381546]
[1769915615497,2.1544777,105.44,105.4,2.09198943]
[1769915616399,11.63870712,105.44,105.4,2.09198943]
[1769915618093,2.30014029,105.43,105.39,61.2]
[1769915618292,2.30014029,105.43,105.39,63.32375715]
[1769915619105,11.78600634,105.42,105.39,63.32375715]
[1769915621879,2.30014029,105.41,105.39,61.2]
[1769915622087,2.30014029,105.41,105.37,2.1540903]
[1769915623099,2.30014029,105.41,105.36,2.16873927]
[1769915623292,2.30014029,105.41,105.35,2.16873927]
[1769915623500,37.47580204,105.42,105.34,2.16873927]
[1769915623501,2.12272506,105.4,105.34,2.16873927]
[1769915623799,2.12272506,105.38,105.33,2.1759378]
[1769915623983,2.12272506,105.36,105.31,11.67134145]
[1769915626281,11.61489402,105.35,105.31,11.67134145]
[1769915626481,11.61489402,105.35,105.32,2.1970411]
[1769915627097,2.12272506,105.35,105.32,2.1970411]
[1769915629510,11.6149104,105.35,105.32,2.1970411]
[1769915630609,9.49218534,105.35,105.32,2.1970411]
[1769915630802,2.12272506,105.36,105.33,2.22406486]
[1769915631416,11.61309233,105.37,105.33,2.22406486]
[1769915631594,2.12272506,105.36,105.33,2.22406486]
[1769915632716,2.12272506,105.36,105.31,15.48333511]
[1769915632915,11.61489402,105.35,105.31,15.48333511]
[1769915633094,2.12272506,105.34,105.31,2.2371156]
[1769915634017,11.61489402,105.35,105.31,2.2371156]
[1769915634395,2.12272506,105.34,105.31,2.2371156]
[1769915635326,11.61582309,105.34,105.31,2.2371156]
[1769915635826,2.12272506,105.33,105.3,11.75218478]
[1769915637223,2.12272506,105.34,105.31,2.26232966]
[1769915638220,2.12272506,105.33,105.3,2.26511603]
[1769915638611,2.12272506,105.33,105.29,0.1]
[1769915638920,2.12272506,105.33,105.29,2.36511603]
[1769915640219,11.61678378,105.33,105.29,11.86254308]
[1769915640522,11.61678378,105.33,105.3,2.26511603]
[1769915642810,11.61678378,105.33,105.3,15.51133554]
[1769915643215,2.12272506,105.34,105.31,2.26511603]
[1769915644111,2.12272506,105.34,105.31,11.76088074]
[1769915645114,2.12272506,105.35,105.32,11.75968441]
[1769915645315,11.61309233,105.37,105.33,2.26511603]
[1769915646221,28.68463865,105.38,105.33,2.26511603]
[1769915646222,14.45000539,105.38,105.33,2.26511603]
[1769915646426,9.48977277,105.38,105.33,2.26511603]
[1769915646622,11.61249783,105.38,105.33,2.26511603]
[1769915646810,2.12272506,105.38,105.33,2.26511603]
[1769915647216,2.12272506,105.38,105.34,11.74934507]
[1769915647416,11.81856824,105.38,105.35,2.25627502]
[1769915648628,2.32897408,105.38,105.35,2.25627502]
[1769915648927,11.81793947,105.39,105.36,2.25627502]
[1769915649311,2.32897408,105.38,105.35,11.74817615]
[1769915650911,11.81857016,105.38,105.35,2.25627502]
[1769915653129,9.48959608,105.38,105.34,9.49269416]
[1769915653427,28.67995119,105.4,105.33,36.98060642]
[1769915653428,2.32897408,105.37,105.33,13.24621951]
[1769915653634,2.32897408,105.37,105.33,15.50249453]
[1769915654933,2.32897408,105.37,105.34,2.25627502]
[1769915655434,11.81941566,105.37,105.34,2.25627502]
[1769915657534,2.32897408,105.39,105.35,2.25627502]
[1769915659236,11.81780671,105.39,105.35,11.7484055]
[1769915661922,2.32897408,105.39,105.36,2.25627502]
[1769915662237,11.8171749,105.4,105.37,2.25627502]
[1769915663113,2.32897408,105.41,105.37,2.25627502]
[1769915663314,16.77401988,105.42,105.38,2.25627502]
[1769915663536,11.81529172,105.42,105.38,2.25627502]
[1769915664628,11.81529172,105.42,105.38,11.74573494]
[1769915667245,2.32897408,105.42,105.39,2.25627502]
[1769915670041,2.32897408,105.41,105.38,9.48860535]
[1769915670243,2.32897408,105.41,105.38,11.74488037]
[1769915670447,11.81631357,105.41,105.38,2.25627502]
[1769915672248,2.32897408,105.4,105.37,2.25627502]
[1769915673434,11.81698402,105.4,105.37,15.50249453]
[1769915674650,2.32897408,105.39,105.37,13.24621951]
[1769915674861,2.32897408,105.39,105.35,24.99448111]
[1769915675942,2.32897408,105.39,105.36,2.25627502]
[1769915676746,11.81766868,105.39,105.36,2.25627502]
[1769915677950,11.81766868,105.39,105.36,15.50249453]
[1769915685054,11.92680233,105.4,105.37,2.33022213]
[1769915685741,2.43904886,105.39,105.37,2.33022213]
[1769915689743,2.43904886,105.39,105.37,15.57644164]
[1769915693367,11.92680233,105.4,105.37,15.57644164]
[1769915694563,2.43904886,105.39,105.37,15.57644164]
[1769915698150,2.43904886,105.41,105.38,2.33022213]
[1769915699254,2.43904886,105.41,105.38,9.48910852]
[1769915699472,2.43904886,105.41,105.39,2.33022213]
[1769915700373,11.92443017,105.43,105.4,2.33022213]
[1769915700673,2.43904886,105.43,105.4,2.33022213]
[1769915701573,2.43904886,105.42,105.38,11.81935487]
[1769915701873,2.43904886,105.42,105.39,9.4883862]
[1769915702072,2.43904886,105.42,105.38,11.81922409]
[1769915702274,2.43904886,105.42,105.38,25.0654436]
[1769915702470,2.43904886,105.42,105.39,2.33022213]
[1769915703772,2.43904886,105.44,105.39,2.33022213]
[1769915704477,2.43904886,105.43,105.4,2.33022213]
[1769915705274,11.92360227,105.44,105.4,2.33022213]
[1769915705871,2.43904886,105.43,105.4,2.33022213]
[1769915706275,2.43904886,105.43,105.4,11.81775102]
[1769915706579,11.92360227,105.44,105.41,2.33022213]
[1769915706962,7.39558422,105.46,105.41,2.33022213]
[1769915707154,7.39558422,105.46,105.42,2.39044626]
[1769915707357,2.43904886,105.46,105.42,2.39044626]
[1769915708275,2.48418946,105.45,105.42,11.87606593]
[1769915708782,2.48418946,105.47,105.44,2.39044626]
[1769915710267,2.48418946,105.47,105.44,11.87395001]
[1769915712179,2.48418946,105.47,105.44,9.48350375]
[1769915712382,2.48418946,105.49,105.46,2.39044626]
[1769915712578,2.48418946,105.48,105.45,2.39044626]
[1769915716085,2.48418946,105.48,105.45,15.63666577]
[1769915716785,2.48418946,105.47,105.45,13.24621951]
[1769915718080,2.48418946,105.48,105.46,2.39044626]
[1769915719080,2.48418946,105.48,105.45,25.11965044]
[1769915719689,2.48418946,105.48,105.45,15.63666577]
[1769915721790,2.48418946,105.47,105.45,15.63666577]
[1769915722569,2.48418946,105.47,105.45,13.24621951]
[1769915722774,2.48418946,105.47,105.42,2.39044626]
[1769915723805,9.48071498,105.48,105.42,11.87584931]
[1769915723806,2.48418946,105.45,105.42,11.87584931]
[1769915725784,2.48418946,105.45,105.43,2.39044626]
[1769915725984,2.48418946,105.45,105.42,11.87584931]
[1769915726710,2.48418946,105.44,105.41,25.12338535]
[1769915726883,2.48418946,105.44,105.42,2.39044626]
[1769915730704,2.48418946,105.44,105.42,15.63666577]
[1769915736403,2.48418946,105.44,105.42,13.24621951]
[1769915737908,2.48418946,105.44,105.42,15.81260863]
[1769915740203,26.34,105.48,105.44,2.56638912]
[1769915740402,23.7000074,105.49,105.45,2.56638912]
[1769915740403,2.47934405,105.49,105.45,2.56638912]
[1769915740598,2.47934405,105.48,105.45,2.56638912]
[1769915743211,2.47934405,105.48,105.45,12.04933777]
[1769915745114,2.47934405,105.48,105.46,2.56727086]
[1769915745811,2.47934405,105.48,105.46,15.81349037]
[1769915746397,2.47934405,105.48,105.46,13.24621951]
[1769915752216,2.47934405,105.48,105.46,15.81349037]
[1769915752620,2.47934405,105.48,105.46,13.24621951]
[1769915757104,2.47934405,105.48,105.45,13.24621951]
[1769915757305,2.55779251,105.47,105.45,13.24621951]
[1769915758530,12.04006066,105.46,105.43,15.81349037]
[1769915758741,12.04006066,105.46,105.42,9.48542311]
[1769915758742,2.55779251,105.45,105.42,2.56727086]
[1769915760448,2.55779251,105.45,105.41,25.29983949]
[1769915760650,2.55779251,105.44,105.41,2.56727086]
[1769915760943,2.55779251,105.44,105.4,25.30079322]
[1769915761144,2.55779251,105.44,105.4,2.56727086]
[1769915763450,2.55779251,105.42,105.37,12.05717645]
[1769915765747,2.55779251,105.41,105.37,12.05717645]
[1769915767050,2.55779251,105.4,105.37,2.56727086]
[1769915768856,2.55779251,105.4,105.36,12.00410125]
[1769915769058,2.46536834,105.39,105.35,2.5130012]
[1769915770852,9.48898111,105.39,105.35,2.5130012]
[1769915771046,2.46536834,105.38,105.35,2.5130012]
[1769915771960,16.91247663,105.4,105.36,2.5130012]
[1769915772160,7.42443972,105.4,105.36,2.5130012]
[1769915772460,2.46536834,105.4,105.36,2.5130012]
[1769915772648,2.46536834,105.41,105.37,2.5130012]
[1769915772849,16.90959891,105.42,105.38,2.5130012]
[1769915773049,16.90959891,105.42,105.38,12.0023732]
[1769915773448,2.46536834,105.41,105.38,12.0023732]
[1769915774563,2.46536834,105.41,105.37,12.00293359]
[1769915777162,2.46536834,105.41,105.38,2.5130012]
[1769915777568,2.46536834,105.41,105.38,15.75922071]
[1769915779969,2.46536834,105.41,105.38,25.24854976]
[1769915780781,2.46536834,105.41,105.38,22.73554856]
[1769915781081,2.46536834,105.41,105.38,25.24854976]
[1769915786752,2.46536834,105.4,105.38,13.24621951]
[1769915786955,2.46536834,105.4,105.38,15.75922071]
[1769915787583,2.46536834,105.4,105.38,13.24621951]
[1769915787754,2.46536834,105.4,105.35,2.5130012]
[1769915787951,2.46536834,105.4,105.36,2.5130012]
[1769915788377,2.46536834,105.39,105.36,12.00406215]
[1769915795685,2.46536834,105.39,105.36,2.5130012]
[1769915798086,2.46536834,105.39,105.36,13.13033891]
[1769915802984,7.42405612,105.39,105.36,13.13033891]
[1769915803290,2.57462732,105.38,105.35,2.55802673]
[1769915803486,2.57462732,105.38,105.34,2.55802673]
[1769915805590,2.57462732,105.36,105.31,2.55802673]
[1769915805799,2.57462732,105.36,105.3,2.55802673]
[1769915805968,2.57462732,105.34,105.3,2.55802673]
[1769915806474,2.57462732,105.34,105.29,12.15538698]
[1769915806991,2.57462732,105.34,105.3,2.55802673]
[1769915807590,2.57462732,105.32,105.3,2.55802673]
[1769915811791,2.57462732,105.32,105.29,2.65802673]
[1769915812791,12.06987545,105.32,105.29,2.65802673]
[1769915812991,12.06987545,105.32,105.27,9.59893226]
[1769915812992,1.682,105.28,105.27,2.65802673]
[1769915813378,2.57462732,105.3,105.27,2.65802673]
[1769915814596,2.57462732,105.29,105.27,2.65802673]
[1769915814980,14.46002088,105.3,105.27,2.65802673]
[1769915815282,9.4969721,105.3,105.27,2.65802673]
[1769915816095,9.4969721,105.3,105.27,0.1]
[1769915816281,9.4969721,105.3,105.25,0.1]
[1769915816474,33.2386625,105.3,105.25,2.65802673]
[1769915816891,9.49835631,105.29,105.25,2.65802673]
[1769915817095,2.54511478,105.28,105.25,2.65802673]
[1769915819295,12.04368978,105.28,105.25,2.65802673]
[1769915819598,2.54879105,105.27,105.25,2.65802673]
[1769915819789,2.54879105,105.27,105.24,2.55802673]
[1769915820102,2.54879105,105.27,105.23,0.1]
[1769915820301,12.04841788,105.27,105.23,2.65802673]
[1769915821097,9.49880063,105.28,105.24,2.55802673]
[1769915821304,2.5596276,105.29,105.24,2.55802673]
[1769915821776,2.5596276,105.29,105.25,2.55802673]
[1769915822281,2.57046326,105.28,105.25,2.55802673]
[1769915824301,12.06909165,105.28,105.25,2.55802673]
[1769915824881,2.57462732,105.3,105.25,12.05883613]
[1769915825087,2.57462732,105.32,105.27,2.55802673]
[1769915825297,2.57462732,105.32,105.28,2.55802673]
[1769915825493,12.06995773,105.32,105.28,2.55802673]
[1769915825694,2.57462732,105.31,105.28,2.55802673]
[1769915829507,12.07055613,105.31,105.28,2.55802673]
[1769915830306,12.07055613,105.31,105.28,63.75802673]
[1769915830798,12.1556171,105.31,105.28,63.75802673]
[1769915832007,2.65968829,105.3,105.28,61.2]
[1769915832382,2.65968829,105.3,105.28,63.76245295]
[1769915832712,2.65968829,105.33,105.29,2.56245295]
[1769915832899,2.65968829,105.33,105.28,61.2]
[1769915833805,2.65968829,105.33,105.28,58.49949465]
[1769915834107,33.23205468,105.32,105.28,58.49949465]
[1769915835807,33.23205468,105.32,105.28,55.58289464]
[1769915836010,9.49667616,105.3,105.28,55.58289464]
[1769915836211,9.49667616,105.3,105.27,2.72789393]
[1769915836510,9.52401236,105.3,105.27,2.72789393]
[1769915836911,35.69387152,105.33,105.27,2.72789393]
[1769915837106,26.38,105.33,105.27,2.72789393]
[1769915838211,23.74053573,105.31,105.27,2.72789393]
[1769915839710,0.02197426,105.3,105.27,2.72789393]
[1769915843420,0.02197426,105.3,105.23,65.18542311]
[1769915845396,0.02197426,105.3,105.24,2.56245295]
[1769915846318,0.02197426,105.3,105.23,2.66245295]
[1769915846490,10.97987611,105.3,105.23,2.66245295]
[1769915846696,2.65968829,105.28,105.23,2.66245295]
[1769915847009,2.65968829,105.28,105.22,0.1]
[1769915847395,2.65968829,105.26,105.22,0.1]
[1769915849006,2.65968829,105.26,105.22,2.66245295]